bitfinex/quotes_BTCUSD_20251226
["timestamp","ask_amount","ask_price","bid_price","bid_amount"]
[1766713706058,0.01148,87494.0,87483.0,0.01143079]
[1766713706296,0.01148,87494.0,87484.0,0.01143066]
[1766713706498,0.01148,87494.0,87481.0,0.01143105]
[1766713706734,0.01148,87494.0,87479.0,0.06858737]
[1766713706735,0.01148,87494.0,87480.0,0.01143118]
[1766713707029,0.01148,87494.0,87482.0,0.01143092]
[1766713707429,0.01148,87494.0,87483.0,0.01143079]
[1766713707789,0.01148,87494.0,87482.0,0.01143092]
[1766713707923,0.01148,87494.0,87485.0,0.01143053]
[1766713708127,0.01148,87494.0,87483.0,0.01143079]
[1766713708624,0.02290935,87494.0,87479.0,0.05715606]
[1766713708945,0.02290935,87494.0,87476.0,0.01143105]
[1766713708946,0.00055,87479.0,87476.0,0.01143105]
[1766713709155,0.01148,87482.0,87468.0,0.01143275]
[1766713709377,0.01148,87482.0,87465.0,0.01148]
[1766713709378,0.05715592,87480.0,87469.0,0.00015]
[1766713709568,0.05706194,87480.0,87469.0,0.00015]
[1766713709770,0.01143118,87480.0,87469.0,0.00015]
[1766713709935,0.02291092,87482.0,87469.0,0.00015]
[1766713710131,0.61179,87481.0,87469.0,0.01158262]
[1766713710568,0.41179,87481.0,87469.0,0.01158262]
[1766713710774,0.41179,87481.0,87469.0,0.00015]
[1766713710993,0.61179,87471.0,87469.0,0.00015]
[1766713711226,0.61179,87469.0,87457.0,0.01143419]
[1766713711680,0.61179,87469.0,87459.0,0.01143392]
[1766713712069,0.611241,87469.0,87462.0,0.01143353]
[1766713712289,0.01148,87470.0,87463.0,0.0114334]
[1766713712508,0.61179,87475.0,87467.0,0.01143288]
[1766713712723,0.01148,87474.0,87472.0,0.01143222]
[1766713713319,0.01148,87474.0,87471.0,0.01143236]
[1766713713468,0.01148,87474.0,87468.0,0.01143275]
[1766713713682,0.01148,87474.0,87471.0,0.01143236]
[1766713714309,0.01148,87474.0,87468.0,0.01143275]
[1766713714512,0.01148,87474.0,87467.0,0.01143288]
[1766713715328,0.01148,87474.0,87466.0,0.01143301]
[1766713715537,0.01148,87474.0,87465.0,0.01143314]
[1766713715747,0.61179,87472.0,87459.0,0.01151466]
[1766713715927,0.00055,87465.0,87463.0,0.06859979]
[1766713716123,0.61179,87472.0,87464.0,0.01143327]
[1766713716452,0.61179,87472.0,87466.0,0.01143301]
[1766713716652,0.60056681,87472.0,87466.0,0.01143301]
[1766713716876,0.60056681,87472.0,87465.0,0.01143314]
[1766713717073,0.60056681,87472.0,87466.0,0.01143301]
[1766713718005,0.40056681,87472.0,87466.0,0.01143301]
[1766713718215,0.40056681,87472.0,87464.0,0.01143327]
[1766713718577,0.40056681,87472.0,87465.0,0.01143314]
[1766713718755,0.40056681,87472.0,87460.0,0.06860236]
[1766713718960,0.40056681,87472.0,87463.0,0.0114334]
[1766713719157,0.40056681,87472.0,87464.0,0.01143327]
[1766713719359,0.40056681,87472.0,87463.0,0.0114334]
[1766713719964,0.40056681,87472.0,87433.0,0.03431844]
[1766713719965,0.40056681,87472.0,87459.0,0.01151466]
[1766713720164,0.62322249,87470.0,87459.0,8.074e-05]
[1766713720372,0.61179,87470.0,87459.0,8.074e-05]
[1766713720589,0.61179,87470.0,87459.0,0.01151466]
[1766713720809,0.03662291,87469.0,87459.0,8.074e-05]
[1766713721014,0.61179,87468.0,87459.0,8.074e-05]
[1766713721216,0.03662291,87469.0,87459.0,8.074e-05]
[1766713721217,0.61179,87466.0,87459.0,8.074e-05]
[1766713721614,0.61179,87466.0,87459.0,0.01151466]
[1766713722499,0.61179,87466.0,87459.0,8.074e-05]
[1766713722751,0.61179,87466.0,87459.0,0.01151466]
[1766713722896,0.61179,87466.0,87459.0,8.074e-05]
[1766713723500,0.61179,87466.0,87455.0,0.05717172]
[1766713723501,0.01148,87467.0,87424.0,0.03662291]
[1766713723502,8e-05,87459.0,87424.0,0.03662291]
[1766713723670,0.81205983,87458.0,87449.0,0.00015]
[1766713723875,0.81205983,87458.0,87443.0,0.05717951]
[1766713723876,0.00015,87449.0,87443.0,0.01143602]
[1766713724036,0.00015,87449.0,87439.0,0.01143654]
[1766713724037,0.01148,87448.0,87439.0,0.01143654]
[1766713724264,0.01148,87448.0,87436.0,9.277e-05]
[1766713724572,0.01148,87448.0,87437.0,0.0114368]
[1766713724877,0.01148,87448.0,87438.0,0.01143667]
[1766713725079,0.01148,87448.0,87439.0,0.01143654]
[1766713725278,0.01148,87448.0,87437.0,0.0114368]
[1766713725506,0.01148,87447.0,87436.0,9.277e-05]
[1766713725702,0.01148,87447.0,87436.0,0.0115297]
[1766713726200,0.01148,87447.0,87436.0,9.277e-05]
[1766713726502,0.88058549,87447.0,87436.0,9.277e-05]
[1766713726642,0.86915,87447.0,87436.0,9.277e-05]
[1766713727694,0.86915,87447.0,87436.0,0.0115297]
[1766713727892,0.86915,87447.0,87436.0,9.277e-05]
[1766713728093,0.86915,87447.0,87436.0,0.0115297]
[1766713729009,0.86915,87447.0,87437.0,0.0114368]
[1766713729775,0.86915,87447.0,87436.0,0.0115297]
[1766713730417,0.86915,87447.0,87437.0,0.0114368]
[1766713730765,0.86915,87447.0,87437.0,0.01129102]
[1766713731170,0.86915,87447.0,87438.0,0.01143667]
[1766713732668,0.86915,87447.0,87437.0,0.01129102]
[1766713732869,0.01148,87446.0,87438.0,0.01143667]
[1766713733074,0.01148,87446.0,87437.0,0.01129102]
[1766713733279,0.01148,87446.0,87436.0,9.277e-05]
[1766713733987,0.01148,87446.0,87436.0,0.0115297]
[1766713734445,0.01148,87446.0,87436.0,9.277e-05]
[1766713738476,0.86910575,87445.0,87436.0,9.277e-05]
[1766713738665,0.85767,87445.0,87436.0,9.277e-05]
[1766713739639,0.02291562,87446.0,87436.0,9.277e-05]
[1766713739843,0.86910575,87445.0,87436.0,9.277e-05]
[1766713740052,0.85767,87443.0,87436.0,9.277e-05]
[1766713740450,0.01143615,87442.0,87436.0,9.277e-05]
[1766713740698,0.01143615,87442.0,87426.0,0.05719061]
[1766713740699,0.01143654,87439.0,87422.0,0.01143876]
[1766713741053,0.01148,87438.0,87426.0,0.00015]
[1766713741404,0.85767,87437.0,87426.0,0.01158824]
[1766713741599,0.04576,87436.0,87426.0,0.01158824]
[1766713742171,0.90343,87436.0,87426.0,0.00015]
[1766713744007,0.90343,87436.0,87426.0,0.01158824]
[1766713744202,0.04576,87436.0,87426.0,0.01158824]
[1766713744570,0.04576,87436.0,87427.0,0.01143811]
[1766713744788,0.04576,87436.0,87426.0,0.01158824]
[1766713744993,0.04576,87436.0,87427.0,0.01143811]
[1766713745393,0.04576,87436.0,87426.0,0.01158824]
[1766713745591,0.04576,87436.0,87427.0,0.01143811]
[1766713745839,0.04576,87436.0,87429.0,0.01143785]
[1766713746039,0.04576,87436.0,87427.0,0.01143811]
[1766713746544,0.04576,87436.0,87429.0,0.01143785]
[1766713747106,0.04576,87436.0,87428.0,0.01143798]
[1766713747812,0.04576,87435.0,87428.0,0.01143798]
[1766713748560,0.04576,87435.0,87429.0,0.01143785]
[1766713750521,0.04576,87435.0,87430.0,0.01143772]
[1766713750737,0.04576,87435.0,87429.0,0.01143785]
[1766713751008,0.04576,87435.0,87431.0,0.01143759]
[1766713751224,0.04576,87435.0,87430.0,0.01143772]
[1766713751427,0.04576,87435.0,87429.0,0.01143785]
[1766713752002,0.04576,87435.0,87430.0,0.01143772]
[1766713752385,0.04576,87435.0,87429.0,0.01143785]
[1766713752574,0.04576,87435.0,87430.0,0.01143772]
[1766713752774,0.04576,87435.0,87429.0,0.01143785]
[1766713753098,0.04576,87435.0,87430.0,0.01143772]
[1766713753455,0.04576,87435.0,87431.0,0.01143759]
[1766713753661,0.04576,87435.0,87429.0,0.01143785]
[1766713754067,0.01143602,87443.0,87360.0,1.44481052]
[1766713754068,0.04576,87440.0,87435.0,0.000549]
[1766713754268,1.22011684,87450.0,87435.0,0.000549]
[1766713754269,0.41493684,87450.0,87439.0,0.01143654]
[1766713754520,0.01148,87449.0,87443.0,0.01143602]
[1766713754694,0.01148,87449.0,87442.0,0.06861655]
[1766713754891,0.01148,87449.0,87444.0,0.01143589]
[1766713755305,0.01148,87448.0,87444.0,0.01143589]
[1766713755511,0.00015,87457.0,87447.0,0.01143549]
[1766713755716,0.01148,87456.0,87450.0,0.0114351]
[1766713755923,0.01148,87456.0,87449.0,0.01143523]
[1766713756477,0.01148,87456.0,87450.0,0.0114351]
[1766713756880,0.01154036,87456.0,87449.0,0.01143523]
[1766713757281,0.01154036,87456.0,87450.0,0.0114351]
[1766713758123,6.036e-05,87456.0,87451.0,0.01143497]
[1766713758343,0.00571964,87455.0,87453.0,0.01143471]
[1766713758565,1.964e-05,87455.0,87452.0,0.01143484]
[1766713758770,1.964e-05,87455.0,87453.0,0.05717356]
[1766713759059,0.005855,87455.0,87453.0,0.06860827]
[1766713759596,1.964e-05,87455.0,87453.0,0.06860823]
[1766713760338,1.964e-05,87455.0,87453.0,0.01143471]
[1766713760671,1.964e-05,87455.0,87453.0,0.06860805]
[1766713760874,1.964e-05,87455.0,87451.0,0.06860924]
[1766713761939,1.964e-05,87455.0,87452.0,0.01143484]
[1766713762787,1.964e-05,87455.0,87453.0,0.01143471]
[1766713763713,1.964e-05,87455.0,87454.0,0.01143458]
[1766713764267,0.04576,87465.0,87459.0,0.01143392]
[1766713764268,0.03995088,87465.0,87459.0,0.01143392]
[1766713764483,0.00575485,87465.0,87463.0,0.05716703]
[1766713764667,0.00015,87469.0,87465.0,0.01143314]
[1766713764864,0.01148,87468.0,87465.0,0.06859832]
[1766713765108,0.01148,87468.0,87465.0,0.01143314]
[1766713765308,0.01148,87468.0,87465.0,0.00889286]
[1766713765488,0.01148,87468.0,87465.0,0.06605848]
[1766713765691,0.00015,87469.0,87467.0,0.05716441]
[1766713765922,1.26587684,87480.0,87470.0,0.01143249]
[1766713766137,0.00572408,87479.0,87469.0,0.01143262]
[1766713766287,0.00572408,87479.0,87471.0,0.01143236]
[1766713766847,0.00572408,87479.0,87472.0,0.01143222]
[1766713767152,0.00572408,87479.0,87471.0,0.01143236]
[1766713767331,0.00572408,87479.0,87470.0,0.42636933]
[1766713767718,0.00572408,87479.0,87471.0,0.01143236]
[1766713767926,0.00572408,87479.0,87472.0,0.01143222]
[1766713768324,0.00572408,87479.0,87471.0,0.01143236]
[1766713768730,0.00572408,87479.0,87472.0,0.01143222]
[1766713769255,0.00572408,87479.0,87473.0,0.01143209]
[1766713769929,0.00572408,87479.0,87475.0,0.01143183]
[1766713770330,0.00572408,87479.0,87473.0,0.01143209]
[1766713770652,0.00572408,87479.0,87472.0,0.06859316]
[1766713770653,0.0052736,87479.0,87472.0,0.01143222]
[1766713770834,0.0052736,87479.0,87473.0,0.01143209]
[1766713771593,0.0052736,87479.0,87472.0,0.01143222]
[1766713772822,0.0052736,87479.0,87473.0,0.06859253]
[1766713773035,0.0052736,87479.0,87476.0,0.0114317]
[1766713773220,0.0052736,87479.0,87473.0,0.06859201]
[1766713773426,0.0052736,87479.0,87475.0,0.01143183]
[1766713773636,0.0052736,87479.0,87476.0,0.0114317]
[1766713774218,0.0052736,87479.0,87477.0,0.03662291]
[1766713774423,0.80518,87486.0,87477.0,0.04805448]
[1766713774621,0.01148,87485.0,87477.0,0.04805448]
[1766713775027,0.01148,87485.0,87477.0,0.03662291]
[1766713775703,0.01148,87485.0,87477.0,0.04805448]
[1766713778494,0.01148,87485.0,87479.0,0.01143131]
[1766713779507,0.01148,87485.0,87476.0,0.0114317]
[1766713779508,0.81666,87485.0,87476.0,0.0114317]
[1766713779733,0.81621053,87485.0,87478.0,0.01143144]
[1766713779925,0.81621053,87485.0,87477.0,0.01143157]
[1766713780134,0.81621053,87485.0,87476.0,0.0114317]
[1766713780309,0.81621053,87485.0,87477.0,0.01143157]
[1766713780484,0.01148,87484.0,87478.0,0.01143144]
[1766713780688,0.01148,87484.0,87477.0,0.01143157]
[1766713781085,0.01148,87484.0,87475.0,0.01143183]
[1766713781513,0.01148,87484.0,87471.0,0.01143236]
[1766713781851,0.88302,87484.0,87472.0,0.01143222]
[1766713782283,0.88302,87484.0,87473.0,0.01143209]
[1766713782493,0.89445066,87484.0,87470.0,0.01143249]
[1766713782709,0.89445066,87484.0,87472.0,0.01143222]
[1766713782876,0.89445066,87484.0,87471.0,0.01143236]
[1766713783074,0.88302,87484.0,87471.0,0.01143236]
[1766713783744,0.89445066,87484.0,87472.0,0.01143222]
[1766713783947,0.89445066,87484.0,87471.0,0.01143236]
[1766713784145,0.01143079,87483.0,87470.0,0.41435916]
[1766713784358,0.89445066,87484.0,87471.0,0.01143236]
[1766713784949,0.89445066,87484.0,87469.0,0.06859547]
[1766713784950,0.01143079,87483.0,87470.0,0.01143249]
[1766713785670,0.01143079,87483.0,87465.0,0.01143314]
[1766713785671,0.79488,87480.0,87464.0,0.14438167]
[1766713785967,0.79488,87474.0,87464.0,0.14438167]
[1766713786176,0.79488,87473.0,87464.0,0.14438167]
[1766713787246,0.80631209,87473.0,87464.0,0.14438167]
[1766713787431,0.79488,87473.0,87460.0,0.01143379]
[1766713787634,0.79488,87473.0,87461.0,0.05716833]
[1766713787836,0.79488,87473.0,87463.0,0.0114334]
[1766713788043,0.79488,87473.0,87464.0,0.01143327]
[1766713788209,0.79488,87473.0,87463.0,0.0114334]
[1766713789285,0.59488,87473.0,87465.0,0.01143314]
[1766713789575,0.59488,87473.0,87463.0,0.0114334]
[1766713789576,0.01143013,87488.0,87473.0,0.000549]
[1766713789827,0.01143053,87485.0,87473.0,0.000549]
[1766713790017,0.01143079,87483.0,87469.0,0.01143262]
[1766713790236,0.01143092,87482.0,87470.0,0.01143249]
[1766713790434,0.80631079,87483.0,87470.0,0.01143249]
[1766713790683,3.21868156,87500.0,87476.0,0.03662291]
[1766713790891,3.21868156,87500.0,87484.0,0.01143066]
[1766713791100,3.21868156,87500.0,87476.0,0.03662291]
[1766713791101,0.80630922,87495.0,87489.0,0.00015]
[1766713791307,0.01142961,87492.0,87489.0,0.00015]
[1766713791522,0.01148,87491.0,87489.0,0.00015]
[1766713791899,0.01148,87491.0,87481.0,0.01143105]
[1766713792040,0.01148,87491.0,87479.0,0.06858772]
[1766713792244,0.01183188,87491.0,87480.0,0.01143118]
[1766713792474,0.01183188,87491.0,87483.0,0.01143079]
[1766713792677,5e-05,87490.0,87480.0,0.01143118]
[1766713792877,5e-05,87490.0,87481.0,0.01143105]
[1766713793078,0.01148,87491.0,87481.0,0.01143105]
[1766713793340,0.01148,87491.0,87481.0,0.00035188]
[1766713793482,0.01148,87491.0,87481.0,0.01178293]
[1766713794218,0.79488,87490.0,87481.0,0.06893804]
[1766713794531,0.79488,87490.0,87481.0,0.00035188]
[1766713794738,0.79488,87490.0,87481.0,0.01178293]
[1766713794920,0.79488,87490.0,87482.0,0.01143092]
[1766713795303,0.79488,87490.0,87481.0,0.00035188]
[1766713795647,0.01143,87489.0,87481.0,0.00035188]
[1766713795859,0.01143066,87484.0,87469.0,0.01143262]
[1766713796187,0.79523167,87484.0,87475.0,0.01148]
[1766713796348,0.59523167,87484.0,87475.0,0.01148]
[1766713796759,0.59523167,87484.0,87477.0,0.06]
[1766713796956,0.59523167,87484.0,87477.0,0.05963436]
[1766713797570,0.59523167,87484.0,87477.0,0.03500718]
[1766713798405,0.59523167,87484.0,87472.0,0.01143222]
[1766713798612,0.59523167,87484.0,87474.0,0.01143196]
[1766713799209,0.59523167,87484.0,87475.0,0.01143183]
[1766713799523,0.59523167,87484.0,87474.0,0.01143196]
[1766713799897,0.59523167,87484.0,87473.0,0.01143209]
[1766713800139,0.59523167,87484.0,87474.0,0.01143196]
[1766713800279,0.59523167,87484.0,87473.0,0.01143209]
[1766713800485,0.59523167,87484.0,87474.0,0.01143196]
[1766713800913,0.00015,87487.0,87477.0,0.01143157]
[1766713801229,0.00015,87487.0,87478.0,0.06858829]
[1766713801529,0.00015,87487.0,87479.0,0.01143131]
[1766713801986,0.00015,87487.0,87480.0,0.01143118]
[1766713802197,0.79488023,87497.0,87486.0,0.0114304]
[1766713802441,3.20720156,87500.0,87497.0,0.00039877]
[1766713802642,3.20720156,87500.0,87492.0,0.01142961]
[1766713802796,3.20720156,87500.0,87491.0,0.01142974]
[1766713803159,3.20720156,87500.0,87489.0,0.01143]
[1766713803396,3.20720156,87500.0,87490.0,0.01142987]
[1766713803804,3.00720156,87500.0,87484.0,0.0685836]
[1766713804133,3.80208156,87500.0,87487.0,0.01143026]
[1766713804339,3.81351013,87500.0,87487.0,0.01143026]
[1766713804539,3.01863013,87500.0,87487.0,0.01143026]
[1766713804746,3.00720156,87500.0,87489.0,0.05714943]
[1766713804935,3.00680356,87500.0,87493.0,0.01142948]
[1766713805712,3.00680356,87500.0,87491.0,0.01142974]
[1766713805937,3.00680356,87500.0,87492.0,0.01142961]
[1766713806114,3.00680356,87500.0,87493.0,0.01142948]
[1766713806312,3.00680356,87500.0,87491.0,0.01142974]
[1766713807054,3.00680356,87500.0,87492.0,0.01142961]
[1766713807256,3.00680356,87500.0,87490.0,0.01142987]
[1766713807416,3.00680356,87500.0,87491.0,0.01142974]
[1766713807611,2.65911356,87500.0,87491.0,0.01142974]
[1766713807815,2.65911356,87500.0,87492.0,0.01142961]
[1766713808037,2.65911356,87500.0,87491.0,0.01142974]
[1766713808253,2.65911356,87500.0,87483.0,0.01143079]
[1766713808448,0.000549,87491.0,87486.0,0.01148]
[1766713808659,0.0114287,87499.0,87486.0,0.01148]
[1766713808859,2.67054213,87500.0,87486.0,0.0229104]
[1766713809063,2.67054213,87500.0,87484.0,0.14438167]
[1766713809221,0.79488,87495.0,87485.0,0.01148]
[1766713809827,0.79488,87495.0,87493.0,0.06]
[1766713809995,0.79488,87495.0,87493.0,0.059451]
[1766713810197,0.80630935,87494.0,87485.0,0.00979674]
[1766713810410,0.01142961,87492.0,87484.0,0.14438167]
[1766713810708,0.79488,87491.0,87484.0,1.67e-06]
[1766713811306,0.594331,87491.0,87484.0,1.67e-06]
[1766713811453,0.01148,87494.0,87486.0,0.0114304]
[1766713811650,0.01148,87494.0,87485.0,0.01143053]
[1766713812061,0.01148,87494.0,87486.0,0.0114304]
[1766713812777,0.01148,87494.0,87485.0,0.01143053]
[1766713812984,0.01148,87494.0,87487.0,0.01143026]
[1766713813821,0.01148,87494.0,87486.0,0.0114304]
[1766713814589,0.01148,87494.0,87484.0,0.01143233]
[1766713814819,0.01148,87494.0,87486.0,0.0114304]
[1766713814975,0.01148,87494.0,87484.0,0.01143233]
[1766713815176,0.01148,87494.0,87485.0,0.01143053]
[1766713815639,0.01148,87494.0,87486.0,0.0114304]
[1766713816441,0.01148,87494.0,87487.0,0.01143026]
[1766713816645,0.01148,87494.0,87488.0,0.01143013]
[1766713816829,0.01148,87494.0,87487.0,0.01143026]
[1766713817757,0.01148,87494.0,87488.0,0.01143013]
[1766713817920,0.01148,87494.0,87487.0,0.01143026]
[1766713818119,0.01148,87494.0,87488.0,0.01143013]
[1766713818316,0.01144,87496.0,87491.0,0.01142974]
[1766713818643,0.000549,87491.0,87483.0,0.01143079]
[1766713819001,0.8529,87496.0,87484.0,0.01143233]
[1766713819282,0.8529,87496.0,87484.0,1.67e-06]
[1766713819482,0.02286896,87497.0,87484.0,1.67e-06]
[1766713819483,0.8529,87493.0,87484.0,1.67e-06]
[1766713819652,0.8529,87493.0,87484.0,0.01143233]
[1766713820643,0.8529,87493.0,87487.0,0.01143026]
[1766713820876,0.8529,87493.0,87488.0,0.01143013]
[1766713821289,0.8529,87493.0,87485.0,0.06858283]
[1766713822072,0.8529,87493.0,87486.0,0.0114304]
[1766713824461,0.8529,87493.0,87485.0,0.06858283]
[1766713824953,0.8529,87493.0,87486.0,0.0114304]
[1766713825236,0.8529,87493.0,87484.0,0.01143233]
[1766713825462,0.8529,87493.0,87485.0,0.00889025]
[1766713825603,0.8529,87493.0,87484.0,0.01143233]
[1766713826384,0.8529,87493.0,87484.0,1.67e-06]
[1766713826385,0.6529,87493.0,87484.0,1.67e-06]
[1766713826590,0.66432948,87493.0,87484.0,1.67e-06]
[1766713826827,0.01143013,87488.0,87484.0,1.67e-06]
[1766713827250,0.86433,87489.0,87484.0,1.67e-06]
[1766713827390,0.0571524,87486.0,87484.0,1.67e-06]
[1766713827623,0.8529,87479.0,87477.0,2.1e-06]
[1766713828031,0.9100571,87479.0,87477.0,2.1e-06]
[1766713828257,0.8529,87479.0,87477.0,2.1e-06]
[1766713828863,0.92149703,87479.0,87477.0,2.1e-06]
[1766713830546,0.86434,87479.0,87477.0,2.1e-06]
[1766713832031,0.92149707,87479.0,87477.0,2.1e-06]
[1766713832598,0.92149707,87479.0,87467.0,0.00015]
[1766713832599,0.91006376,87468.0,87467.0,1e-08]
[1766713833981,0.71006376,87468.0,87467.0,1e-08]
[1766713834582,0.76722752,87468.0,87467.0,1e-08]
[1766713841334,0.56722752,87468.0,87467.0,1e-08]
[1766713845522,0.66053303,87468.0,87467.0,1e-08]
[1766713846615,0.56722752,87468.0,87467.0,1e-08]
[1766713849093,0.36722752,87468.0,87467.0,1e-08]
[1766713852993,0.36667852,87468.0,87467.0,1e-08]
[1766713866914,0.16667852,87468.0,87467.0,1e-08]
[1766713871445,0.06860082,87463.0,87460.0,0.00284924]
[1766713871799,0.01093,87462.0,87460.0,0.00295455]
[1766713872133,0.01093,87462.0,87460.0,0.00010531]
[1766713872536,0.06809801,87462.0,87460.0,0.00010531]
[1766713874372,0.01148,87461.0,87460.0,0.00010531]
[1766713880398,0.01143392,87459.0,87446.0,0.04412562]
[1766713880607,0.01143392,87459.0,87447.0,0.01143549]
[1766713880804,0.02291366,87461.0,87449.0,0.30691523]
[1766713881058,0.01148,87461.0,87449.0,0.30691523]
[1766713881289,0.01148,87461.0,87450.0,0.3069151]
[1766713881847,0.01144,87462.0,87451.0,0.01143497]
[1766713882047,0.01144,87462.0,87452.0,0.01143484]
[1766713882380,0.01144,87462.0,87452.0,0.48203484]
[1766713882578,0.01144,87462.0,87452.0,0.4706]
[1766713882579,0.02287353,87462.0,87452.0,0.4706]
[1766713882792,0.01144,87462.0,87452.0,0.4706]
[1766713882995,0.01143366,87461.0,87452.0,0.4706]
[1766713883408,0.01144,87462.0,87452.0,0.4706]
[1766713883409,0.02278408,87462.0,87452.0,0.4706]
[1766713885009,0.01143366,87461.0,87452.0,0.4706]
[1766713885355,0.02278408,87462.0,87452.0,0.4706]
[1766713885554,0.01135055,87462.0,87452.0,0.46806156]
[1766713886498,0.01135055,87462.0,87452.0,0.4794964]
[1766713886958,0.01135055,87462.0,87450.0,0.06861035]
[1766713886959,0.00929161,90182.0,87464.0,0.47153]
[1766713886963,0.79839,87480.0,87464.0,0.47153]
[1766713887162,0.79839,87487.0,87473.0,0.47153]
[1766713887361,0.79839,87487.0,87477.0,0.01143157]
[1766713887574,0.80981935,87494.0,87480.0,0.01143118]
[1766713887707,0.79839,87494.0,87482.0,0.4694]
[1766713887906,0.79839,87494.0,87482.0,0.48083092]
[1766713888155,0.79839,87494.0,87482.0,0.01143092]
[1766713888333,0.79839,87494.0,87483.0,0.4694]
[1766713888334,0.01178136,87494.0,87483.0,0.4694]
[1766713888541,0.01142948,87493.0,87483.0,0.4694]
[1766713888746,0.01178136,87494.0,87483.0,0.4694]
[1766713890346,0.00035201,87494.0,87483.0,0.48083079]
[1766713892251,0.01142961,87492.0,87483.0,0.4694]
[1766713892771,0.01142974,87491.0,87483.0,0.4694]
[1766713893163,0.01142987,87490.0,87483.0,0.4694]
[1766713893723,0.01142961,87492.0,87483.0,0.4694]
[1766713894341,0.01142974,87491.0,87483.0,0.4694]
[1766713894642,0.01142987,87490.0,87483.0,0.4694]
[1766713894866,0.06857885,87491.0,87483.0,0.4694]
[1766713895065,0.01142987,87490.0,87483.0,0.4694]
[1766713895262,0.01142974,87491.0,87483.0,0.4694]
[1766713895463,0.01142987,87490.0,87483.0,0.4694]
[1766713895624,0.01142974,87491.0,87483.0,0.4694]
[1766713897031,0.01142987,87490.0,87483.0,0.4694]
[1766713897231,0.01142974,87491.0,87483.0,0.4694]
[1766713897477,0.01142961,87492.0,87483.0,0.4694]
[1766713897647,0.01142974,87491.0,87483.0,0.4694]
[1766713898054,0.05714793,87493.0,87479.0,0.01148]
[1766713898055,0.000549,87483.0,87479.0,0.01148]
[1766713898396,0.79874201,87494.0,87468.0,0.01144]
[1766713898397,0.79839,87484.0,87468.0,0.01144]
[1766713898592,0.79839,87484.0,87476.0,0.0114317]
[1766713898593,0.01144,87484.0,87476.0,0.0114317]
[1766713898797,0.01144,87484.0,87476.0,0.50355981]
[1766713899005,0.79839,87488.0,87476.0,0.50355981]
[1766713899006,0.01148,87486.0,87476.0,0.4464017]
[1766713899167,0.01148,87486.0,87477.0,0.01143157]
[1766713899361,0.01148,87486.0,87476.0,0.4464017]
[1766713899362,0.01148,87486.0,87476.0,0.43497]
[1766713899572,0.01148,87486.0,87473.0,0.01143209]
[1766713899573,0.05715402,87483.0,87467.0,0.43368288]
[1766713899774,0.01148,87486.0,87467.0,0.43368288]
[1766713899775,0.79839,87479.0,87471.0,0.01148]
[1766713901185,0.79839,87479.0,87468.0,0.06859605]
[1766713901395,0.79839,87479.0,87468.0,0.01148]
[1766713901799,0.59839,87479.0,87468.0,0.01148]
[1766713902002,0.59839,87479.0,87469.0,0.00015]
[1766713902343,0.59839,87479.0,87469.0,0.01158262]
[1766713902550,0.58678426,87479.0,87470.0,0.01143249]
[1766713902951,0.58678426,87479.0,87471.0,0.01143236]
[1766713903593,0.58678426,87479.0,87472.0,0.01143222]
[1766713903930,0.58678426,87479.0,87471.0,0.01143236]
[1766713904134,0.58678426,87479.0,87472.0,0.01143222]
[1766713904418,0.58678426,87479.0,87473.0,0.01143209]
[1766713904912,0.58678426,87479.0,87471.0,0.01143236]
[1766713905302,0.58678426,87479.0,87470.0,0.01143249]
[1766713906333,0.58678426,87479.0,87471.0,0.01143236]
[1766713907318,0.58678426,87479.0,87470.0,0.01143249]
[1766713907632,0.58678426,87479.0,87471.0,0.01143236]
[1766713907769,0.01143079,87483.0,87472.0,0.01143222]
[1766713907980,0.78503079,87483.0,87471.0,0.01143236]
[1766713908192,0.01143092,87482.0,87471.0,0.01143236]
[1766713908397,0.78503079,87483.0,87471.0,0.01143236]
[1766713909377,0.78503079,87483.0,87469.0,0.05731265]
[1766713909378,0.65361609,87483.0,87469.0,0.01158262]
[1766713910383,0.01143092,87482.0,87469.0,0.01158262]
[1766713910526,0.01143092,87482.0,87470.0,0.01143249]
[1766713911561,0.6078925,87483.0,87471.0,0.01143236]
[1766713912157,0.77375,87489.0,87475.0,0.82451183]
[1766713912363,0.01148,87488.0,87476.0,0.8245117]
[1766713913034,0.78508,87488.0,87477.0,0.01143157]
[1766713913228,0.02291013,87488.0,87477.0,0.81113]
[1766713913801,0.02291013,87488.0,87477.0,0.82256157]
[1766713913978,0.01148,87488.0,87477.0,0.82256157]
[1766713914186,0.02291013,87488.0,87477.0,0.81113]
[1766713914407,0.02291013,87488.0,87477.0,0.82256157]
[1766713914694,0.01148,87488.0,87477.0,0.82256157]
[1766713914898,0.01148,87488.0,87478.0,0.01143144]
[1766713915289,0.01148,87488.0,87477.0,0.82256157]
[1766713915521,0.01148,87488.0,87478.0,0.01143144]
[1766713916600,0.01148,87488.0,87479.0,0.01143131]
[1766713917898,0.01148,87488.0,87478.0,0.81670144]
[1766713918107,0.01148,87488.0,87485.0,1e-08]
[1766713918675,0.02291013,87488.0,87485.0,1e-08]
[1766713919086,0.01148,87488.0,87478.0,0.80527]
[1766713922973,0.01148,87488.0,87478.0,0.81670144]
[1766713923411,0.01148,87488.0,87478.0,0.80527]
[1766713923620,0.02291013,87488.0,87478.0,0.80527]
[1766713923798,0.02291013,87488.0,87477.0,0.01143157]
[1766713923799,0.7736,87490.0,87476.0,0.01144]
[1766713924031,0.7850304,87486.0,87476.0,0.01144]
[1766713924239,0.84218285,87486.0,87476.0,0.01144]
[1766713924539,0.78503053,87485.0,87476.0,0.01144]
[1766713924754,0.7736,87485.0,87476.0,0.01144]
[1766713925186,0.78503053,87485.0,87476.0,0.01144]
[1766713925327,0.7736,87485.0,87476.0,0.01144]
[1766713925529,0.78503053,87485.0,87476.0,0.01144]
[1766713927893,0.78503053,87485.0,87466.0,0.69357445]
[1766713927894,0.000549,87476.0,87466.0,0.69357445]
[1766713928089,0.7736,87481.0,87468.0,0.06859616]
[1766713928424,0.78503105,87481.0,87470.0,0.01143249]
[1766713928839,0.78503105,87481.0,87469.0,0.02302262]
[1766713928997,0.78503105,87481.0,87470.0,0.01143249]
[1766713929205,0.01143118,87480.0,87469.0,0.02302262]
[1766713929404,0.78503105,87481.0,87469.0,0.02302262]
[1766713930445,0.7736,87481.0,87471.0,0.01143236]
[1766713930807,0.7736,87481.0,87470.0,0.01143249]
[1766713930808,0.5736,87481.0,87470.0,0.01143249]
[1766713932391,0.01143118,87480.0,87469.0,0.01158262]
[1766713932591,0.58503105,87481.0,87470.0,0.01143249]
[1766713933366,0.5736,87481.0,87470.0,0.01143249]
[1766713933979,0.5736,87481.0,87470.0,0.76198249]
[1766713934411,0.01143118,87480.0,87470.0,0.75055]